bitfinex/quotes_BTCUSD_20230110
["timestamp","ask_amount","ask_price","bid_price","bid_amount"]
[1673318185146,1.92816539,17181.0,17180.0,0.084]
[1673318185481,1.5804629,17181.0,17180.0,0.084]
[1673318185671,1.92816539,17181.0,17180.0,0.084]
[1673318185931,1.5804629,17181.0,17180.0,0.084]
[1673318186233,1.75437554,17181.0,17180.0,0.084]
[1673318189830,1.92818455,17181.0,17180.0,0.084]
[1673318190105,1.18804316,17181.0,17180.0,0.084]
[1673318190342,1.58050204,17181.0,17180.0,0.084]
[1673318194599,1.92820221,17181.0,17180.0,0.084]
[1673318194847,1.75439552,17181.0,17180.0,0.084]
[1673318196596,1.17093824,17181.0,17180.0,0.084]
[1673318196837,1.70475991,17181.0,17180.0,0.084]
[1673318197074,1.87832787,17181.0,17180.0,0.084]
[1673318197327,1.70468422,17181.0,17180.0,0.084]
[1673318197813,1.87832787,17181.0,17180.0,0.084]
[1673318198315,2.09229943,17181.0,17180.0,0.084]
[1673318198567,2.13902791,17181.0,17180.0,0.084]
[1673318198855,1.70468308,17181.0,17180.0,0.084]
[1673318199115,2.09234354,17181.0,17180.0,0.084]
[1673318199357,2.09234063,17181.0,17180.0,0.084]
[1673318199607,1.70473913,17181.0,17180.0,0.084]
[1673318201360,1.70490729,17181.0,17180.0,0.084]
[1673318201637,1.53104788,17181.0,17180.0,0.084]
[1673318201859,1.70490729,17181.0,17180.0,0.084]
[1673318203612,1.53082625,17181.0,17180.0,0.084]
[1673318203865,1.53082584,17181.0,17180.0,0.084]
[1673318204112,1.70465448,17181.0,17180.0,0.084]
[1673318204868,1.53665448,17181.0,17180.0,0.084]
[1673318205868,1.92434755,17181.0,17180.0,0.084]
[1673318207991,1.14435463,17181.0,17180.0,0.084]
[1673318208247,0.43671827,17181.0,17180.0,1.01311171]
[1673318208558,0.1758878,17181.0,17180.0,1.30605082]
[1673318208810,0.002,17181.0,17180.0,1.30605082]
[1673318210611,0.1758878,17181.0,17180.0,1.30605082]
[1673318211430,0.002,17181.0,17180.0,1.30605082]
[1673318212203,0.1758878,17181.0,17180.0,1.30605082]
[1673318212473,0.70649767,17181.0,17180.0,0.614617]
[1673318212731,1.14114283,17181.0,17180.0,0.084]
[1673318215030,1.57548766,17181.0,17180.0,0.084]
[1673318215311,1.14114283,17181.0,17180.0,0.084]
[1673318217039,0.9673525,17181.0,17180.0,0.084]
[1673318218274,0.70652203,17181.0,17180.0,0.084]
[1673318218770,0.9673525,17181.0,17180.0,0.084]
[1673318221010,1.14114283,17181.0,17180.0,0.084]
[1673318222491,1.14116336,17181.0,17180.0,0.084]
[1673318222751,1.31465719,17181.0,17180.0,0.084]
[1673318223001,1.53364769,17181.0,17180.0,0.084]
[1673318223245,1.1859452,17181.0,17180.0,0.084]
[1673318223501,0.82651152,17181.0,17180.0,0.084]
[1673318223755,0.61286015,17180.0,17178.0,0.01597536]
[1673318224007,0.94637641,17179.0,17178.0,0.01597536]
[1673318224254,0.80868558,17179.0,17178.0,0.01597536]
[1673318224510,0.98259574,17179.0,17178.0,0.01597536]
[1673318224761,0.80867949,17179.0,17178.0,0.01597536]
[1673318225016,0.80867732,17179.0,17178.0,0.01597536]
[1673318225276,1.24343724,17179.0,17178.0,0.01597536]
[1673318225541,0.63468716,17179.0,17178.0,0.01597536]
[1673318225790,1.24426099,17179.0,17178.0,0.01597536]
[1673318226040,1.42823566,17179.0,17178.0,0.09297536]
[1673318226540,1.77096957,17179.0,17178.0,0.09297536]
[1673318227348,1.59695731,17179.0,17178.0,0.09297536]
[1673318227854,1.41815731,17179.0,17178.0,0.01597536]
[1673318228103,1.52115731,17179.0,17178.0,0.02297536]
[1673318228856,1.52109793,17179.0,17178.0,0.02297536]
[1673318229116,1.34707369,17179.0,17178.0,0.02297536]
[1673318229870,0.71257383,17179.0,17178.0,0.02297536]
[1673318231124,0.103,17179.0,17178.0,0.98408801]
[1673318231626,0.103,17179.0,17178.0,0.02297536]
[1673318232878,0.27679609,17179.0,17178.0,0.02297536]
[1673318234630,0.103,17179.0,17178.0,0.02297536]
[1673318235360,0.27679609,17179.0,17178.0,0.02297536]
[1673318235603,0.103,17179.0,17178.0,0.02297536]
[1673318241353,0.93139645,17179.0,17178.0,0.02297536]
[1673318241859,1.19210022,17179.0,17178.0,0.02297536]
[1673318242127,0.7115241,17179.0,17178.0,0.02297536]
[1673318242379,1.58811615,17179.0,17178.0,0.02297536]
[1673318242634,0.2,17178.0,17177.0,0.01829369]
[1673318242887,0.63447893,17178.0,17177.0,0.01829369]
[1673318243884,0.84250769,17178.0,17177.0,0.02229369]
[1673318244130,1.01659574,17178.0,17177.0,0.02229369]
[1673318244350,1.22983771,17178.0,17177.0,0.02229369]
[1673318244631,1.59195471,17178.0,17177.0,0.02229369]
[1673318244898,1.61695236,17178.0,17177.0,0.02229369]
[1673318245153,2.08575236,17178.0,17177.0,0.02229369]
[1673318245417,1.65097695,17178.0,17177.0,0.01676002]
[1673318245666,0.2,17177.0,17176.0,0.01255784]
[1673318245936,1.0535654,17177.0,17176.0,0.01255784]
[1673318246189,1.49216548,17177.0,17176.0,0.01255784]
[1673318246506,1.11919757,17177.0,17176.0,0.01255784]
[1673318246674,1.15749204,17177.0,17176.0,0.01255784]
[1673318247430,0.63401074,17177.0,17176.0,0.01255784]
[1673318247670,1.35940838,17177.0,17176.0,0.01255784]
[1673318247918,0.68572042,17177.0,17176.0,0.01255784]
[1673318248174,0.42532008,17177.0,17176.0,0.01255784]
[1673318248419,1.44168612,17177.0,17176.0,0.01255784]
[1673318248918,1.44168612,17177.0,17176.0,0.01555784]
[1673318249161,1.21456912,17177.0,17176.0,0.01555784]
[1673318251161,1.04095872,17177.0,17176.0,0.01555784]
[1673318251421,1.57668612,17177.0,17176.0,0.01555784]
[1673318252162,1.21456912,17177.0,17176.0,0.01555784]
[1673318252410,1.57668612,17177.0,17176.0,0.01555784]
[1673318252663,1.18283742,17177.0,17176.0,0.01555784]
[1673318252912,1.35642325,17177.0,17176.0,0.01555784]
[1673318253417,1.88809155,17177.0,17176.0,0.01555784]
[1673318254416,1.35642325,17177.0,17176.0,0.00555784]
[1673318254951,1.79041854,17177.0,17176.0,0.00555784]
[1673318255206,2.11251781,17177.0,17176.0,0.00555784]
[1673318255473,2.03992539,17177.0,17176.0,0.00555784]
[1673318255719,2.06549625,17177.0,17176.0,0.00555784]
[1673318256012,1.96860096,17177.0,17176.0,0.00555784]
[1673318256244,2.40222045,17177.0,17176.0,0.00555784]
[1673318256513,1.72945336,17177.0,17176.0,0.00555784]
[1673318256755,1.56115336,17177.0,17176.0,0.00555784]
[1673318257006,1.95834426,17177.0,17176.0,0.00555784]
[1673318257272,1.69815312,17177.0,17176.0,0.00555784]
[1673318257521,1.52470586,17177.0,17176.0,0.00555784]
[1673318259550,0.80072049,17176.0,17174.0,0.01542071]
[1673318259795,0.85941031,17175.0,17174.0,0.01542071]
[1673318260060,0.54780931,17175.0,17174.0,0.01542071]
[1673318260566,0.54780931,17175.0,17174.0,0.02042071]
[1673318260810,0.54780931,17175.0,17174.0,0.01542071]
[1673318261050,0.56880931,17175.0,17174.0,0.02042071]
[1673318262802,0.74229831,17175.0,17174.0,0.02042071]
[1673318263049,0.194489,17175.0,17174.0,0.02042071]
[1673318263318,0.76824706,17175.0,17174.0,0.02042071]
[1673318264072,0.363289,17175.0,17174.0,0.02042071]
[1673318264317,0.725406,17175.0,17174.0,0.02042071]
[1673318264571,0.363289,17175.0,17174.0,0.01542071]
[1673318264823,0.93275424,17175.0,17174.0,0.01542071]
[1673318265074,0.59046524,17175.0,17174.0,0.01542071]
[1673318266809,0.021,17175.0,17174.0,0.01542071]
[1673318267050,0.1898,17175.0,17174.0,0.01542071]
[1673318267305,0.725406,17175.0,17174.0,0.01042071]
[1673318267555,0.925406,17175.0,17174.0,0.01042071]
[1673318268302,1.18557823,17175.0,17174.0,0.01042071]
[1673318268542,1.8578355,17175.0,17174.0,0.01042071]
[1673318268792,1.18557823,17175.0,17174.0,0.01042071]
[1673318270086,1.48557823,17175.0,17174.0,0.01042071]
[1673318270340,1.18557823,17175.0,17174.0,0.01042071]
[1673318271141,1.83466078,17175.0,17174.0,0.01042071]
[1673318271375,1.40099955,17175.0,17174.0,0.01042071]
[1673318271649,1.03888255,17175.0,17174.0,0.01042071]
[1673318271876,1.40099955,17175.0,17174.0,0.01042071]
[1673318273086,0.925406,17175.0,17174.0,0.01042071]
[1673318273609,1.90485398,17175.0,17174.0,0.01042071]
[1673318273860,2.03136498,17175.0,17174.0,0.01042071]
[1673318274606,2.03192265,17175.0,17174.0,0.01042071]
[1673318274826,2.03165608,17175.0,17174.0,0.01042071]
[1673318275102,2.20510334,17175.0,17174.0,0.01042071]
[1673318275607,2.20510676,17175.0,17174.0,0.01042071]
[1673318276141,1.83244344,17175.0,17174.0,0.01042071]
[1673318276411,2.41787111,17175.0,17174.0,0.01042071]
[1673318276760,2.07096416,17175.0,17171.0,0.01752362]
[1673318276911,0.2,17174.0,17171.0,0.01752362]
[1673318277167,0.1734345,17172.0,17171.0,0.01752362]
[1673318277448,0.55100735,17172.0,17171.0,0.01752362]
[1673318277675,0.2,17172.0,17171.0,0.01752362]
[1673318277965,0.88604338,17172.0,17171.0,0.01752362]
[1673318279701,1.02004338,17172.0,17171.0,0.01752362]
[1673318280197,0.08247638,17171.0,17170.0,1.04722089]
[1673318280441,0.08247638,17171.0,17170.0,1.77166]
[1673318280704,0.08247638,17171.0,17170.0,1.94046]
[1673318282219,0.08247638,17171.0,17170.0,1.32259419]
[1673318282480,0.17747638,17171.0,17170.0,3.27820534]
[1673318282727,0.17747638,17171.0,17170.0,3.45229053]
[1673318283219,0.08253638,17171.0,17170.0,3.05102627]
[1673318283469,0.09653638,17171.0,17170.0,3.50455207]
[1673318283727,0.09653638,17171.0,17170.0,3.82679789]
[1673318283977,0.09653638,17171.0,17170.0,3.69158491]
[1673318284243,0.08253638,17171.0,17170.0,3.37358491]
[1673318284488,0.08253638,17171.0,17170.0,3.19971133]
[1673318284731,0.08253638,17171.0,17170.0,3.05134023]
[1673318285219,0.09653638,17171.0,17170.0,3.08687123]
[1673318285467,0.09653638,17171.0,17170.0,3.79498731]
[1673318285711,0.09653638,17171.0,17170.0,3.49498731]
[1673318285966,0.09653638,17171.0,17170.0,3.32618731]
[1673318286215,0.09653638,17171.0,17170.0,3.50048808]
[1673318286463,0.09653638,17171.0,17170.0,3.62618731]
[1673318287472,0.09653638,17171.0,17170.0,3.79995854]
[1673318288209,0.09653638,17171.0,17170.0,3.09184246]
[1673318288958,0.09653638,17171.0,17170.0,2.74367208]
[1673318290461,0.09653638,17171.0,17170.0,2.4772591]
[1673318290718,0.09653638,17171.0,17170.0,2.87652336]
[1673318291212,0.09647638,17171.0,17170.0,3.07120677]
[1673318291727,0.09647638,17171.0,17170.0,3.50693972]
[1673318291966,0.09647638,17171.0,17170.0,3.55474365]
[1673318292217,0.09647638,17171.0,17170.0,3.55474438]
[1673318292965,0.09647638,17171.0,17170.0,3.04884438]
[1673318293215,0.09647638,17171.0,17170.0,3.55454438]
[1673318294745,0.09647638,17171.0,17170.0,3.95380864]
[1673318295251,0.09647638,17171.0,17170.0,3.55454438]
[1673318295494,0.09647638,17171.0,17170.0,3.94235736]
[1673318296016,0.09647638,17171.0,17170.0,3.90600471]
[1673318296300,0.09647638,17171.0,17170.0,4.74548296]
[1673318296521,0.30006,17175.0,17172.0,0.07677758]
[1673318296522,0.10006,17175.0,17172.0,0.07677758]
[1673318296767,0.10006,17175.0,17174.0,0.1686]
[1673318297025,0.10006,17175.0,17174.0,0.76839489]
[1673318297276,0.10006,17175.0,17174.0,0.530717]
[1673318297519,0.10006,17175.0,17174.0,1.70599489]
[1673318297761,0.10006,17175.0,17174.0,2.468317]
[1673318298024,0.10006,17175.0,17174.0,2.64250917]
[1673318298303,0.10006,17175.0,17174.0,2.94250917]
[1673318298551,0.12906,17175.0,17174.0,3.85082106]
[1673318298795,0.10006,17175.0,17174.0,4.48977813]
[1673318299054,0.10206,17175.0,17174.0,4.45317813]
[1673318299387,0.10006,17175.0,17174.0,4.49531873]
[1673318299592,0.10206,17175.0,17174.0,4.46006809]
[1673318300146,0.10406,17175.0,17174.0,4.59206809]
[1673318300363,6e-05,17175.0,17174.0,4.22106809]
[1673318301354,0.00206,17175.0,17174.0,3.71711102]
[1673318301591,0.00206,17175.0,17174.0,4.35933491]
[1673318302089,0.00206,17175.0,17174.0,3.71711102]
[1673318302348,0.00626748,17177.0,17175.0,0.2]
[1673318302596,0.00626748,17177.0,17176.0,0.362117]
[1673318303867,0.00726748,17177.0,17176.0,0.422117]
[1673318304884,0.73493242,17177.0,17176.0,0.422117]
[1673318305126,1.2491223,17177.0,17176.0,0.06]
[1673318305376,0.90293242,17177.0,17176.0,0.06]
[1673318305632,1.24937313,17177.0,17176.0,0.06]
[1673318306647,1.24837313,17177.0,17174.0,1.23035002]
[1673318306897,1.25662148,17177.0,17174.0,0.64295208]
[1673318307150,0.1685,17175.0,17174.0,1.18156309]
[1673318308891,0.1685,17175.0,17174.0,0.64295208]
[1673318309141,0.71143488,17175.0,17174.0,0.64295208]
[1673318309398,0.55093488,17175.0,17174.0,0.64295208]
[1673318310885,0.52093488,17175.0,17174.0,0.64295208]
[1673318318446,0.52066413,17175.0,17174.0,0.64295208]
[1673318319236,0.69409863,17175.0,17174.0,0.64295208]
[1673318320232,0.52066413,17175.0,17174.0,0.64295208]
[1673318321487,0.69409863,17175.0,17174.0,0.64295208]
[1673318321980,1.83027619,17175.0,17174.0,0.64295208]
[1673318322224,1.84141969,17175.0,17174.0,0.64295208]
[1673318322481,2.20371069,17175.0,17174.0,0.64295208]
[1673318322734,2.20371069,17175.0,17174.0,0.64276594]
[1673318322975,1.84141969,17175.0,17174.0,0.64276594]
[1673318323224,1.49558488,17175.0,17174.0,0.64276594]
[1673318323482,1.32236599,17175.0,17174.0,0.64276594]
[1673318323979,1.85787588,17175.0,17174.0,0.64276594]
[1673318324222,1.32234741,17175.0,17174.0,0.64276594]
[1673318324720,1.84190644,17175.0,17174.0,0.64276594]
[1673318324968,2.03150541,17175.0,17174.0,0.64276594]
[1673318325225,1.32234541,17175.0,17174.0,0.64276594]
[1673318325982,1.06219366,17175.0,17174.0,0.64276594]
[1673318327230,0.52066413,17175.0,17174.0,0.64276594]
[1673318327476,0.008,17175.0,17174.0,0.64276594]
[1673318328734,1.350313,17176.0,17174.0,0.64276594]
[1673318329735,0.58005231,17175.0,17174.0,0.64276594]
[1673318331004,0.75368184,17175.0,17174.0,0.64276594]
[1673318331764,0.021,17175.0,17174.0,0.65276594]
[1673318333239,0.72874049,17175.0,17174.0,0.65276594]
[1673318335470,0.021,17175.0,17174.0,0.65276594]
[1673318336478,0.021,17175.0,17174.0,1.19291053]
[1673318337986,0.1898,17175.0,17174.0,1.19291053]
[1673318339574,0.36342953,17175.0,17174.0,1.19291053]
[1673318341585,0.62358128,17175.0,17174.0,1.19291053]
[1673318341822,0.97045028,17175.0,17174.0,0.65276594]
[1673318342113,1.837506,17175.0,17174.0,0.65276594]
[1673318342581,2.21871053,17175.0,17174.0,0.65276594]
[1673318342830,2.40256511,17175.0,17174.0,0.65276594]
[1673318343337,1.96814627,17175.0,17174.0,0.65276594]
[1673318344347,1.78589357,17175.0,17174.0,0.65276594]
[1673318344654,2.59362967,17175.0,17174.0,0.65276594]
[1673318345399,2.59162967,17175.0,17174.0,0.65276594]
[1673318345963,2.07041587,17175.0,17174.0,0.65276594]
[1673318346153,1.56267977,17175.0,17174.0,0.65276594]
[1673318346411,2.21978792,17175.0,17174.0,0.65276594]
[1673318346921,1.56267977,17175.0,17174.0,0.65276594]
[1673318347429,2.15909571,17175.0,17174.0,0.65276594]
[1673318347988,1.56267977,17175.0,17174.0,0.65276594]
[1673318348518,1.8142643,17175.0,17174.0,0.65276594]
[1673318349026,2.1490453,17175.0,17174.0,0.65276594]
[1673318349293,1.56067977,17175.0,17174.0,0.65276594]
[1673318349538,2.1470453,17175.0,17174.0,0.65276594]
[1673318349792,2.1300453,17175.0,17174.0,0.64276594]
[1673318350034,2.2660453,17175.0,17174.0,0.64676594]
[1673318350293,2.39914951,17175.0,17174.0,0.64276594]
[1673318350804,1.94978398,17175.0,17174.0,0.64676594]
[1673318351352,2.53614951,17175.0,17174.0,0.64676594]
[1673318351609,2.53614951,17175.0,17174.0,0.64656267]
[1673318354244,1.92982655,17175.0,17174.0,0.64656267]
[1673318354513,1.34346102,17175.0,17174.0,0.64656267]
[1673318354769,1.53293613,17175.0,17174.0,0.64656267]
[1673318355826,2.11930166,17175.0,17174.0,0.64656267]
[1673318356353,3.3092838,17175.0,17174.0,0.64656267]
[1673318356611,4.34698776,17175.0,17174.0,0.64656267]
[1673318356869,4.7158189,17175.0,17174.0,0.64656267]
[1673318358196,4.13029332,17175.0,17174.0,0.64636373]
[1673318358442,0.2,17174.0,17173.0,0.17419602]
[1673318358694,3.56195089,17174.0,17173.0,0.17419602]
[1673318359008,2.85427211,17174.0,17173.0,0.17419602]
[1673318359258,3.43935507,17174.0,17173.0,0.17419602]
[1673318359514,3.57635507,17174.0,17173.0,0.17699275]
[1673318360030,3.57635507,17174.0,17173.0,0.17679809]
[1673318360331,3.43935507,17174.0,17173.0,0.17379809]
[1673318360589,3.63455191,17174.0,17173.0,0.17659482]
[1673318361131,3.80175191,17174.0,17173.0,0.17659482]
[1673318361395,3.80175191,17174.0,17173.0,0.17359482]
[1673318361396,3.21666895,17174.0,17173.0,0.17359482]
[1673318361673,3.80134792,17174.0,17173.0,0.17639155]
[1673318361931,3.21666895,17174.0,17173.0,0.17339155]
[1673318362184,3.93833866,17174.0,17173.0,0.1748676]
[1673318362459,3.93833866,17174.0,17173.0,0.17398885]
[1673318363760,3.93833866,17174.0,17173.0,0.17370239]
[1673318364816,3.93787778,17174.0,17173.0,0.17370239]
[1673318365640,3.93787778,17174.0,17173.0,0.17329573]
[1673318366413,2.97322675,17174.0,17173.0,0.17329573]
[1673318366676,3.55722724,17174.0,17173.0,0.17329573]
[1673318367979,3.25722724,17174.0,17173.0,0.17329573]
[1673318369242,3.29332109,17174.0,17173.0,0.17329573]
[1673318369524,3.58579165,17174.0,17173.0,0.17329573]
[1673318370804,3.88579165,17174.0,17173.0,0.17329573]
[1673318371067,3.36662425,17174.0,17173.0,0.17329573]
[1673318371844,3.88579165,17174.0,17173.0,0.17329573]
[1673318372348,3.36662425,17174.0,17173.0,0.17329573]
[1673318372601,3.88579165,17174.0,17173.0,0.17329573]
[1673318373662,3.26569731,17174.0,17173.0,0.19082373]
[1673318373921,2.74652991,17174.0,17173.0,0.19082373]
[1673318374188,3.3305304,17174.0,17173.0,0.19082373]
[1673318374448,3.88370305,17174.0,17173.0,0.19082373]
[1673318375473,3.4985304,17174.0,17173.0,0.19082373]
[1673318375743,2.97272675,17174.0,17173.0,0.19082373]
[1673318377092,3.98682675,17174.0,17173.0,0.19082373]
[1673318377376,2.97392675,17174.0,17173.0,0.19082373]
[1673318377634,3.03471375,17174.0,17173.0,0.19082373]
[1673318380322,3.19782133,17174.0,17173.0,0.19082373]
[1673318380574,3.21480508,17174.0,17173.0,0.19082373]
[1673318380851,3.09083891,17174.0,17173.0,0.19082373]
[1673318381104,3.11368362,17174.0,17173.0,0.19082373]
[1673318381387,2.50592675,17174.0,17173.0,0.020528]
[1673318381697,2.91722316,17174.0,17173.0,0.020528]
[1673318381953,3.62809638,17174.0,17173.0,0.00731717]
[1673318382212,2.91721671,17174.0,17173.0,0.00731717]
[1673318383032,2.33230553,17174.0,17173.0,0.00731717]
[1673318383296,2.85941149,17174.0,17173.0,0.00731717]
[1673318383604,3.14535264,17174.0,17173.0,0.00731717]
[1673318384169,2.85941149,17174.0,17173.0,0.00731717]
[1673318384679,0.89891583,17173.0,17170.0,0.27322145]
[1673318384935,0.43376135,17171.0,17169.0,0.87200261]
[1673318385194,1.14306427,17170.0,17169.0,0.67200261]
[1673318385487,0.96955878,17170.0,17169.0,0.67200261]
[1673318385743,0.79605321,17170.0,17169.0,0.67200261]
[1673318386254,0.96955878,17170.0,17168.0,0.19167719]
[1673318386509,0.53579062,17169.0,17168.0,0.82280937]
[1673318386797,0.79604824,17169.0,17168.0,0.82280937]
[1673318387047,0.43375724,17169.0,17168.0,0.82280937]
[1673318387568,0.79604824,17169.0,17168.0,0.82280937]
[1673318387839,0.68375724,17169.0,17168.0,0.82280937]
[1673318388405,0.81975724,17169.0,17168.0,0.82680937]
[1673318388660,0.99326778,17169.0,17168.0,0.82680937]
[1673318388929,0.81987397,17169.0,17168.0,0.82680937]
[1673318389184,0.81987424,17169.0,17168.0,0.82680937]
[1673318389591,1.1668844,17169.0,17168.0,0.82680937]
[1673318389592,0.81987424,17169.0,17168.0,0.82680937]
[1673318390037,0.81987424,17169.0,17168.0,0.19567719]
[1673318390509,1.64681012,17169.0,17168.0,0.19567719]
[1673318390740,1.39681012,17169.0,17168.0,0.19567719]
[1673318391442,1.22344074,17169.0,17168.0,0.19567719]
[1673318393725,1.79167703,17169.0,17168.0,0.19567719]
[1673318393955,2.15396803,17169.0,17168.0,0.19567719]
[1673318394174,1.8308633,17169.0,17168.0,0.19567719]
[1673318394437,1.2238005,17169.0,17168.0,0.19567719]
[1673318395596,1.57081066,17169.0,17168.0,0.19567719]
[1673318395841,1.39710195,17169.0,17168.0,0.19567719]
[1673318399003,1.8308633,17169.0,17168.0,0.19567719]
[1673318399483,1.79155569,17169.0,17168.0,0.19567719]
[1673318400203,1.57031385,17169.0,17168.0,0.19567719]
[1673318400411,1.79155789,17169.0,17168.0,0.19567719]
[1673318401490,1.78825989,17169.0,17168.0,0.19567719]
[1673318403326,1.44124973,17169.0,17168.0,0.19567719]
[1673318403618,1.80354073,17169.0,17168.0,0.19567719]
[1673318403878,1.44187989,17169.0,17168.0,0.19567719]
[1673318406672,1.36977938,17169.0,17168.0,0.19567719]
[1673318407487,1.00748838,17169.0,17168.0,0.19567719]
[1673318407746,1.10748838,17169.0,17168.0,0.19567719]
[1673318408004,1.46977938,17169.0,17168.0,0.19567719]
[1673318408280,1.10748838,17169.0,17168.0,0.19567719]
[1673318409068,1.10748838,17169.0,17168.0,0.09567719]
[1673318410713,1.49002914,17169.0,17168.0,0.09567719]
[1673318411006,1.85232014,17169.0,17168.0,0.09567719]
[1673318411600,1.49002914,17169.0,17168.0,0.09567719]
[1673318411852,0.53793448,17168.0,17167.0,0.00173748]
[1673318412111,1.50427066,17168.0,17167.0,0.00173748]
[1673318412372,1.14197966,17168.0,17167.0,0.00173748]
[1673318412625,2.32478428,17168.0,17167.0,0.00173748]
[1673318412927,1.7868498,17168.0,17167.0,0.00173748]
[1673318413183,2.4871407,17168.0,17167.0,0.00373748]
[1673318413731,1.9218498,17168.0,17167.0,0.00373748]
[1673318413999,0.00200353,17166.0,17164.0,0.13042127]
[1673318414296,1.00298561,17165.0,17164.0,0.13042127]
[1673318414556,0.95554491,17165.0,17163.0,0.17358142]
[1673318414819,1.00291341,17164.0,17163.0,0.17358142]
[1673318415095,1.00291341,17164.0,17163.0,0.18193142]
[1673318415096,1.40909608,17164.0,17163.0,0.18193142]
[1673318415359,1.20649936,17164.0,17163.0,0.18193142]
[1673318415659,1.20822652,17164.0,17163.0,0.18193142]
[1673318416715,1.6850092,17164.0,17163.0,0.00923142]
[1673318416977,1.86795551,17164.0,17163.0,0.00923142]
[1673318417244,2.44615621,17164.0,17163.0,0.00923142]
[1673318417500,2.69615621,17164.0,17163.0,0.00923142]
[1673318417771,2.50429825,17164.0,17163.0,0.00923142]
[1673318418031,2.50429825,17164.0,17163.0,0.00623142]
[1673318418032,2.06229089,17164.0,17163.0,0.00623142]
[1673318418595,3.29301794,17164.0,17163.0,0.00623142]
[1673318418859,1.89597548,17164.0,17163.0,0.00623142]
[1673318419111,1.55887548,17164.0,17163.0,0.00623142]
[1673318419367,1.69220549,17164.0,17163.0,0.0019841]
[1673318419670,1.50934815,17164.0,17163.0,0.0019841]
[1673318419923,2.89806372,17164.0,17163.0,0.0019841]
[1673318420192,2.78156092,17164.0,17163.0,0.0019841]
[1673318420491,2.83975776,17164.0,17163.0,0.0019841]
[1673318420759,3.8588005,17164.0,17163.0,0.0019841]
[1673318421058,3.1046977,17164.0,17163.0,0.0019841]
[1673318421320,2.40303576,17164.0,17163.0,0.0019841]
[1673318421578,1.98474121,17164.0,17163.0,0.23966199]
[1673318421829,1.41756474,17164.0,17163.0,0.23966199]
[1673318422127,1.8363351,17164.0,17163.0,0.0019841]
[1673318422373,1.41756161,17164.0,17163.0,0.0019841]
[1673318422630,1.59048406,17164.0,17163.0,0.0019841]
[1673318422886,1.83631368,17164.0,17163.0,0.0019841]
[1673318423169,1.83631368,17164.0,17162.0,0.00873541]
[1673318423170,0.2,17163.0,17162.0,0.00873541]
[1673318423424,2.05457881,17163.0,17162.0,0.00873541]
[1673318423688,1.70895295,17163.0,17162.0,0.00873541]
[1673318423938,1.95895295,17163.0,17162.0,0.00873541]
[1673318424214,0.2,17162.0,17158.0,0.00302968]
[1673318424490,0.87163908,17161.0,17158.0,0.76429995]
[1673318424751,0.50934808,17161.0,17158.0,0.16865]
[1673318425309,0.25,17161.0,17158.0,0.16865]
[1673318425825,0.3,17160.0,17158.0,0.16865]
[1673318426081,0.3,17160.0,17158.0,0.16716844]
[1673318426641,0.55,17160.0,17158.0,0.16701844]
[1673318427149,0.63744725,17159.0,17158.0,0.16701844]
[1673318427918,0.88744725,17159.0,17158.0,0.16701844]
[1673318428698,1.02244725,17159.0,17158.0,0.16701844]
[1673318429227,1.02244725,17159.0,17157.0,0.02464541]
[1673318429228,1.14953573,17159.0,17157.0,0.02464541]
[1673318429524,0.662291,17158.0,17157.0,0.02464541]
[1673318429782,0.562291,17158.0,17157.0,0.02464541]
[1673318430041,0.74631096,17158.0,17157.0,0.02464541]
[1673318430527,0.99631096,17158.0,17157.0,0.02464541]
[1673318430788,1.08066066,17158.0,17157.0,0.02464541]
[1673318431781,0.586,17158.0,17157.0,0.02464541]
[1673318432322,1.13662609,17158.0,17157.0,0.02464541]
[1673318433304,0.386,17158.0,17157.0,0.87571083]
[1673318433570,0.386,17158.0,17157.0,0.80683294]
[1673318433827,0.386,17158.0,17157.0,1.16912394]
[1673318435096,1.05703903,17158.0,17157.0,0.19344541]
[1673318435596,1.05703903,17158.0,17157.0,0.09344541]
[1673318436151,1.05703903,17158.0,17157.0,0.78977759]
[1673318436152,0.386,17158.0,17157.0,0.78977759]
[1673318436368,0.386,17158.0,17157.0,1.15206859]
[1673318436709,0.38606,17158.0,17157.0,1.15206859]
[1673318437169,0.25006,17158.0,17157.0,1.15206859]
[1673318437418,0.32006,17158.0,17157.0,1.15406859]
[1673318438680,0.25006,17158.0,17157.0,1.15206859]
[1673318438938,0.32006,17158.0,17157.0,1.15406859]
[1673318439203,0.25006,17158.0,17157.0,1.15206859]
[1673318439440,0.32006,17158.0,17157.0,1.15406859]
[1673318440477,0.32006,17158.0,17157.0,1.75406859]
[1673318440725,0.32006,17158.0,17157.0,1.39533641]
[1673318440975,0.42006,17158.0,17157.0,1.94980345]
[1673318441240,0.42006,17158.0,17157.0,1.39533641]
[1673318441807,0.42,17158.0,17157.0,1.39533641]
[1673318442519,0.42,17158.0,17157.0,1.46413641]
[1673318442768,0.35,17158.0,17157.0,1.46213641]
[1673318443035,0.365,17158.0,17157.0,2.09400311]
[1673318443287,0.365,17158.0,17157.0,1.92520311]
[1673318443830,0.35,17158.0,17157.0,1.90420311]
[1673318444064,0.35,17158.0,17157.0,0.52453641]
[1673318444563,0.35,17158.0,17157.0,0.52442589]
[1673318445597,0.35,17158.0,17157.0,0.52431537]
[1673318446107,0.425,17158.0,17157.0,0.52731537]
[1673318446389,0.97532241,17158.0,17157.0,0.52731537]
[1673318446646,0.97532241,17158.0,17157.0,0.1718]
[1673318449526,0.97532241,17158.0,17157.0,0.00288948]
[1673318450498,0.97532241,17158.0,17157.0,0.00277896]
[1673318451756,0.97532241,17158.0,17157.0,0.00266844]
[1673318452038,0.97532241,17158.0,17157.0,0.36517444]
[1673318452245,0.97532241,17158.0,17157.0,0.00266844]
[1673318452492,0.97532241,17158.0,17157.0,0.00255792]
[1673318453710,0.72532241,17158.0,17157.0,0.00255792]
[1673318454933,0.72532241,17158.0,17157.0,1.01439901]
[1673318454934,0.175,17158.0,17157.0,1.01439901]
[1673318455181,0.175,17158.0,17157.0,1.18319901]
[1673318455453,0.175,17158.0,17157.0,1.35089901]
[1673318455693,0.175,17158.0,17157.0,1.95089901]
[1673318456196,0.175,17158.0,17157.0,1.94834109]
[1673318456197,0.1,17158.0,17157.0,1.94834109]
[1673318456684,0.11,17158.0,17157.0,1.97834109]
[1673318457245,0.11,17158.0,17157.0,0.729006]
[1673318457246,0.76845339,17158.0,17157.0,0.729006]
[1673318457489,0.76045339,17158.0,17157.0,0.729006]
[1673318457733,0.092,17158.0,17157.0,0.699006]
[1673318458261,0.099,17158.0,17157.0,0.903006]
[1673318459963,0.099,17158.0,17157.0,1.50718721]
[1673318460462,0.099,17158.0,17157.0,1.33838721]
[1673318460710,0.099,17158.0,17157.0,0.734206]
[1673318460958,0.08322,17158.0,17157.0,2.89580991]
[1673318461209,0.08322,17158.0,17157.0,2.54786407]